fUSD/lending_fUSD_20260516
["ID","MTS","AMOUNT","RATE_DAILY","PERIOD"]
[422364950,1778878233000,-150.0,0.00013987,2]
[422364971,1778878233000,-150.0,0.0001413,2]
[422364966,1778878233000,-150.0,0.00014087,2]
[422364965,1778878233000,-214.997284,0.00014075,2]
[422364961,1778878233000,-166.66,0.00014062,2]
[422364957,1778878233000,-150.0,0.00014037,2]
[422364970,1778878233000,-196.81,0.00014099,2]
[422364959,1778878233000,-150.0,0.0001405,2]
[422364963,1778878233000,-208.38824723,0.00014075,2]
[422364969,1778878233000,-150.0,0.00014087,2]
[422364955,1778878233000,-500.0,0.00013989,2]
[422364952,1778878233000,-500.0,0.00013989,2]
[422364954,1778878233000,-150.0,0.00013989,2]
[422364948,1778878233000,-150.0,0.00013987,2]
[422364974,1778878233000,-150.0,0.00014237,2]
[422364990,1778878233000,-196.81,0.00014435,2]
[422365006,1778878233000,-180.94080904,0.00014577,2]
[422364986,1778878233000,-150.0,0.00014387,2]
[422364989,1778878233000,-166.66,0.00014425,2]
[422365019,1778878233000,-267.42558703,0.00014577,2]
[422365018,1778878233000,-509.0,0.00014577,2]
[422365017,1778878233000,-509.0,0.00014577,2]
[422365015,1778878233000,-509.0,0.00014577,2]
[422365014,1778878233000,-509.0,0.00014577,2]
[422365013,1778878233000,-400.78704759,0.00014577,2]
[422365010,1778878233000,-434.33213622,0.00014577,2]
[422365008,1778878233000,-509.0,0.00014577,2]
[422365012,1778878233000,-108.21295241,0.00014577,2]
[422365007,1778878233000,-328.05919096,0.00014577,2]
[422365011,1778878233000,-509.0,0.00014577,2]
[422365009,1778878233000,-74.66786378,0.00014577,2]
[422365005,1778878233000,-509.0,0.00014577,2]
[422365016,1778878233000,-509.0,0.00014577,2]
[422365004,1778878233000,-509.0,0.00014577,2]
[422365003,1778878233000,-509.0,0.00014577,2]
[422364988,1778878233000,-150.0,0.00014424,2]
[422364992,1778878233000,-150.0,0.00014487,2]
[422364995,1778878233000,-150.0,0.00014487,2]
[422364994,1778878233000,-150.0,0.00014487,2]
[422364993,1778878233000,-150.0,0.00014487,2]
[422364991,1778878233000,-150.0,0.00014437,2]
[422364999,1778878233000,-150.0,0.00014558,2]
[422364997,1778878233000,-9999.99,0.00014497,2]
[422364998,1778878233000,-150.0,0.00014537,2]
[422365002,1778878233000,-509.0,0.00014577,2]
[422365001,1778878233000,-509.0,0.00014577,2]
[422365000,1778878233000,-509.0,0.00014577,2]
[422364996,1778878233000,-3704.61,0.00014497,2]
[422365040,1778878238000,-166.66,0.00014606,2]
[422365046,1778878238000,-6406.13783497,0.000147,2]
[422365041,1778878238000,-150.0,0.00014612,2]
[422365045,1778878238000,-227.734372,0.00014687,2]
[422365048,1778878238000,-150.0,0.00014726,2]
[422365044,1778878238000,-150.0,0.00014687,2]
[422365047,1778878238000,-150.0,0.00014726,2]
[422365049,1778878238000,-291.85352659,0.00014726,2]
[422365043,1778878238000,-150.0,0.00014687,2]
[422365042,1778878238000,-150.0,0.00014637,2]
[422365039,1778878238000,-176.666666,0.00014602,2]
[422365031,1778878238000,-328.3528084,0.00014577,2]
[422365037,1778878238000,-230.48077924,0.000146,2]
[422365035,1778878238000,-520.87202916,0.00014577,2]
[422365036,1778878238000,-150.0,0.00014587,2]
[422365033,1778878238000,-509.0,0.00014577,2]
[422365034,1778878238000,-509.0,0.00014577,2]
[422365051,1778878238000,-150.0,0.00014726,2]
[422365032,1778878238000,-180.6471916,0.00014577,2]
[422365029,1778878238000,-509.0,0.00014577,2]
[422365028,1778878238000,-509.0,0.00014577,2]
[422365025,1778878238000,-241.57441297,0.00014577,2]
[422365038,1778878238000,-2277.51922076,0.000146,2]
[422365050,1778878238000,-150.0,0.00014726,2]
[422365030,1778878238000,-509.0,0.00014577,2]
[422365053,1778878238000,-150.0,0.00014726,2]
[422365052,1778878238000,-150.0,0.00014726,2]
[422365079,1778878238000,-500.0,0.00014835,2]
[422365077,1778878238000,-150.0,0.00014799,2]
[422365075,1778878238000,-150.0,0.00014786,2]
[422365074,1778878238000,-150.0,0.00014772,2]
[422365073,1778878238000,-196.81,0.00014771,2]
[422365072,1778878238000,-200.0,0.00014755,2]
[422365070,1778878238000,-600.0,0.00014751,2]
[422365066,1778878238000,-300.0,0.00014751,2]
[422365069,1778878238000,-300.0,0.00014751,2]
[422365068,1778878238000,-300.0,0.00014751,2]
[422365071,1778878238000,-710.90704609,0.00014751,2]
[422365067,1778878238000,-300.0,0.00014751,2]
[422365054,1778878238000,-240.00749327,0.00014726,2]
[422365065,1778878238000,-300.0,0.00014751,2]
[422365055,1778878238000,-150.0,0.00014737,2]
[422365059,1778878238000,-206.01414035,0.00014751,2]
[422365058,1778878238000,-150.0,0.00014751,2]
[422365056,1778878238000,-150.0,0.00014737,2]
[422365061,1778878238000,-2500.0,0.00014751,2]
[422365062,1778878238000,-2500.0,0.00014751,2]
[422365063,1778878238000,-2500.0,0.00014751,2]
[422365064,1778878238000,-2500.0,0.00014751,2]
[422365060,1778878238000,-2500.0,0.00014751,2]
[422365133,1778878239000,-500.0,0.00014997,2]
[422365132,1778878239000,-500.0,0.00014997,2]
[422365131,1778878239000,-151.0,0.00014997,2]
[422365130,1778878239000,-150.0,0.00014986,2]
[422365128,1778878239000,-150.0,0.00014986,2]
[422365125,1778878239000,-150.0,0.00014986,2]
[422365129,1778878239000,-173.4120625,0.00014986,2]
[422365126,1778878239000,-206.8471718,0.00014986,2]
[422365124,1778878239000,-267.15823454,0.00014986,2]
[422365123,1778878239000,-150.0,0.00014986,2]
[422365127,1778878239000,-150.0,0.00014986,2]
[422365134,1778878239000,-500.0,0.00014997,2]
[422365147,1778878239000,-500.0,0.00014998,2]
[422365140,1778878239000,-330.50441725,0.00014998,2]
[422365139,1778878239000,-824.61712934,0.00014998,2]
[422365135,1778878239000,-500.0,0.00014997,2]
[422365137,1778878239000,-500.0,0.00014997,2]
[422365138,1778878239000,-150.60061714,0.00014998,2]
[422365141,1778878239000,-271.1999,0.00014998,2]
[422365142,1778878239000,-500.0,0.00014998,2]
[422365145,1778878239000,-500.0,0.00014998,2]
[422365143,1778878239000,-500.0,0.00014998,2]
[422365144,1778878239000,-500.0,0.00014998,2]
[422365120,1778878239000,-150.0,0.00014936,2]
[422365146,1778878239000,-500.0,0.00014998,2]
[422365148,1778878239000,-500.0,0.00014998,2]
[422365136,1778878239000,-500.0,0.00014997,2]
[422365122,1778878239000,-150.0,0.00014986,2]
[422365109,1778878239000,-1806.08536537,0.000149,2]
[422365119,1778878239000,-3077.95289296,0.000149,2]
[422365149,1778878239000,-500.0,0.00014998,2]
[422365087,1778878239000,-200.0,0.00014875,2]
[422365084,1778878239000,-469.54,0.00014851,2]
[422365083,1778878239000,-498.665,0.00014841,2]
[422365081,1778878239000,-150.0,0.00014836,2]
[422365089,1778878239000,-150.0,0.00014886,2]
[422365091,1778878239000,-500.0,0.00014898,2]
[422365093,1778878239000,-314.61326393,0.00014899,2]
[422365096,1778878239000,-314.6132639,0.00014899,2]
[422365099,1778878239000,-314.6132639,0.00014899,2]
[422365101,1778878239000,-314.6132639,0.00014899,2]
[422365102,1778878239000,-1806.08536537,0.00014899,2]
[422365103,1778878239000,-314.6132639,0.00014899,2]
[422365104,1778878239000,-314.6132639,0.000149,2]
[422365105,1778878239000,-1806.08536537,0.000149,2]
[422365106,1778878239000,-314.6132639,0.000149,2]
[422365107,1778878239000,-1806.08536537,0.000149,2]
[422365110,1778878239000,-314.6132639,0.000149,2]
[422365108,1778878239000,-314.6132639,0.000149,2]
[422365112,1778878239000,-1607.1946,0.000149,2]
[422365111,1778878239000,-209.27074646,0.000149,2]
[422365116,1778878239000,-314.6132639,0.000149,2]
[422365117,1778878239000,-1806.08536537,0.000149,2]
[422365118,1778878239000,-25000.0,0.000149,3]
[422365113,1778878239000,-74717.7699,0.000149,2]
[422365114,1778878239000,-25000.0,0.000149,3]
[422365115,1778878239000,-5000.0,0.000149,2]
[422365121,1778878239000,-150.0,0.00014986,2]
[422365152,1778878239000,-500.0,0.00014998,2]
[422365167,1778878239000,-29143.4117871,0.00014999,2]
[422365150,1778878239000,-152.0,0.00014998,7]
[422365185,1778878239000,-500.0,0.00014999,2]
[422365186,1778878239000,-500.0,0.00014999,2]
[422365188,1778878239000,-500.0,0.00014999,2]
[422365191,1778878239000,-500.0,0.00014999,2]
[422365190,1778878239000,-433.68580669,0.00014999,2]
[422365189,1778878239000,-500.0,0.00014999,2]
[422365192,1778878239000,-500.0,0.00014999,2]
[422365187,1778878239000,-500.0,0.00014999,2]
[422365193,1778878239000,-500.0,0.00014999,2]
[422365195,1778878239000,-500.0,0.00014999,2]
[422365194,1778878239000,-500.0,0.00014999,2]
[422365196,1778878239000,-500.0,0.00014999,2]
[422365198,1778878239000,-500.0,0.00014999,2]
[422365197,1778878239000,-500.0,0.00014999,2]
[422365199,1778878239000,-500.0,0.00014999,2]
[422365200,1778878239000,-500.0,0.00014999,2]
[422365201,1778878239000,-500.0,0.00014999,2]
[422365202,1778878239000,-500.0,0.00014999,2]
[422365153,1778878239000,-500.0,0.00014998,2]
[422365204,1778878239000,-500.0,0.00014999,2]
[422365205,1778878239000,-500.0,0.00014999,2]
[422365207,1778878239000,-500.0,0.00014999,2]
[422365209,1778878239000,-500.0,0.00014999,2]
[422365206,1778878239000,-500.0,0.00014999,2]
[422365208,1778878239000,-500.0,0.00014999,2]
[422365211,1778878239000,-500.0,0.00014999,2]
[422365210,1778878239000,-500.0,0.00014999,2]
[422365183,1778878239000,-500.0,0.00014999,2]
[422365184,1778878239000,-500.0,0.00014999,2]
[422365203,1778878239000,-500.0,0.00014999,2]
[422365182,1778878239000,-500.0,0.00014999,2]
[422365181,1778878239000,-500.0,0.00014999,2]
[422365151,1778878239000,-152.0,0.00014998,7]
[422365154,1778878239000,-500.0,0.00014998,2]
[422365155,1778878239000,-201.38691855,0.00014999,5]
[422365157,1778878239000,-23988.5777336,0.00014999,2]
[422365159,1778878239000,-392373.1354633,0.00014999,2]
[422365158,1778878239000,-4079.0916688,0.00014999,2]
[422365160,1778878239000,-500.0,0.00014999,2]
[422365163,1778878239000,-500.0,0.00014999,2]
[422365165,1778878239000,-500.0,0.00014999,2]
[422365162,1778878239000,-500.0,0.00014999,2]
[422365161,1778878239000,-500.0,0.00014999,2]
[422365166,1778878239000,-500.0,0.00014999,2]
[422365156,1778878239000,-1349.28756851,0.00014999,5]
[422365168,1778878239000,-500.0,0.00014999,2]
[422365175,1778878239000,-500.0,0.00014999,2]
[422365164,1778878239000,-500.0,0.00014999,2]
[422365179,1778878239000,-500.0,0.00014999,2]
[422365180,1778878239000,-500.0,0.00014999,2]
[422365177,1778878239000,-500.0,0.00014999,2]
[422365176,1778878239000,-500.0,0.00014999,2]
[422365174,1778878239000,-500.0,0.00014999,2]
[422365173,1778878239000,-500.0,0.00014999,2]
[422365170,1778878239000,-619.86,0.00014999,2]
[422365172,1778878239000,-500.0,0.00014999,2]
[422365171,1778878239000,-500.0,0.00014999,2]
[422365169,1778878239000,-500.0,0.00014999,2]
[422365178,1778878239000,-500.0,0.00014999,2]
[422365235,1778878240000,-500.0,0.00014999,2]
[422365242,1778878240000,-500.0,0.00014999,2]
[422365233,1778878240000,-500.0,0.00014999,2]
[422365237,1778878240000,-500.0,0.00014999,2]
[422365240,1778878240000,-500.0,0.00014999,2]
[422365239,1778878240000,-500.0,0.00014999,2]
[422365243,1778878240000,-500.0,0.00014999,2]
[422365241,1778878240000,-500.0,0.00014999,2]
[422365244,1778878240000,-500.0,0.00014999,2]
[422365253,1778878240000,-500.0,0.00014999,2]
[422365246,1778878240000,-500.0,0.00014999,2]
[422365249,1778878240000,-500.0,0.00014999,2]
[422365247,1778878240000,-500.0,0.00014999,2]
[422365248,1778878240000,-500.0,0.00014999,2]
[422365250,1778878240000,-500.0,0.00014999,2]
[422365252,1778878240000,-500.0,0.00014999,2]
[422365236,1778878240000,-500.0,0.00014999,2]
[422365251,1778878240000,-500.0,0.00014999,2]
[422365245,1778878240000,-500.0,0.00014999,2]
[422365234,1778878240000,-500.0,0.00014999,2]
[422365218,1778878240000,-500.0,0.00014999,2]
[422365230,1778878240000,-500.0,0.00014999,2]
[422365255,1778878240000,-500.0,0.00014999,2]
[422365212,1778878240000,-500.0,0.00014999,2]
[422365214,1778878240000,-500.0,0.00014999,2]
[422365213,1778878240000,-500.0,0.00014999,2]
[422365217,1778878240000,-500.0,0.00014999,2]
[422365216,1778878240000,-500.0,0.00014999,2]
[422365215,1778878240000,-500.0,0.00014999,2]
[422365222,1778878240000,-500.0,0.00014999,2]
[422365221,1778878240000,-500.0,0.00014999,2]
[422365220,1778878240000,-500.0,0.00014999,2]
[422365223,1778878240000,-500.0,0.00014999,2]
[422365219,1778878240000,-500.0,0.00014999,2]
[422365224,1778878240000,-500.0,0.00014999,2]
[422365225,1778878240000,-500.0,0.00014999,2]
[422365226,1778878240000,-500.0,0.00014999,2]
[422365228,1778878240000,-500.0,0.00014999,2]
[422365227,1778878240000,-500.0,0.00014999,2]
[422365229,1778878240000,-500.0,0.00014999,2]
[422365231,1778878240000,-500.0,0.00014999,2]
[422365232,1778878240000,-500.0,0.00014999,2]
[422365254,1778878240000,-500.0,0.00014999,2]
[422365238,1778878240000,-500.0,0.00014999,2]
[422365257,1778878240000,-500.0,0.00014999,2]
[422365281,1778878240000,-486.54461365,0.00014999,2]
[422365283,1778878240000,-300.0,0.00014999,2]
[422365278,1778878240000,-500.0,0.00014999,2]
[422365284,1778878240000,-300.0,0.00014999,2]
[422365280,1778878240000,-500.0,0.00014999,2]
[422365285,1778878240000,-300.0,0.00014999,2]
[422365287,1778878240000,-300.0,0.00014999,2]
[422365288,1778878240000,-666.0,0.00014999,2]
[422365289,1778878240000,-300.0,0.00014999,2]
[422365286,1778878240000,-300.0,0.00014999,2]
[422365292,1778878240000,-666.0,0.00014999,2]
[422365295,1778878240000,-1578.0,0.00015,5]
[422365293,1778878240000,-300.0,0.00014999,2]
[422365296,1778878240000,-150.0,0.00015,2]
[422365294,1778878240000,-1972.0,0.00015,5]
[422365297,1778878240000,-150.0,0.00015,2]
[422365291,1778878240000,-300.0,0.00014999,2]
[422365298,1778878240000,-4148929.34344651,0.00015,2]
[422365256,1778878240000,-500.0,0.00014999,2]
[422365282,1778878240000,-300.0,0.00014999,2]
[422365279,1778878240000,-500.0,0.00014999,2]
[422365290,1778878240000,-300.0,0.00014999,2]
[422365274,1778878240000,-500.0,0.00014999,2]
[422365260,1778878240000,-500.0,0.00014999,2]
[422365261,1778878240000,-500.0,0.00014999,2]
[422365262,1778878240000,-531.58948672,0.00014999,2]
[422365263,1778878240000,-500.0,0.00014999,2]
[422365264,1778878240000,-500.0,0.00014999,2]
[422365266,1778878240000,-500.0,0.00014999,2]
[422365267,1778878240000,-500.0,0.00014999,2]
[422365258,1778878240000,-500.0,0.00014999,2]
[422365259,1778878240000,-500.0,0.00014999,2]
[422365269,1778878240000,-500.0,0.00014999,2]
[422365270,1778878240000,-500.0,0.00014999,2]
[422365268,1778878240000,-500.0,0.00014999,2]
[422365265,1778878240000,-500.0,0.00014999,2]
[422365273,1778878240000,-500.0,0.00014999,2]
[422365275,1778878240000,-500.0,0.00014999,2]
[422365299,1778878240000,-1300.0,0.00015,2]
[422365276,1778878240000,-500.0,0.00014999,2]
[422365272,1778878240000,-500.0,0.00014999,2]
[422365271,1778878240000,-500.0,0.00014999,2]
[422365277,1778878240000,-500.0,0.00014999,2]
[422365300,1778878241000,-4270.75855665,0.000147,2]
[422365302,1778878241000,-395.03,0.00015,2]
[422365301,1778878241000,-3629.24144334,0.00015,2]
[422365318,1778878243000,-3795.30150105,0.00015,2]
[422365317,1778878243000,-1161.38846132,0.00015,2]
[422365316,1778878243000,-306.63874523,0.00015,2]
[422365362,1778878949000,4670.20012795,8e-05,2]
[422365370,1778879372000,169.53,9.126e-05,2]
[422365369,1778879372000,169.53,8.019e-05,2]
[422365368,1778879372000,169.53,6.912e-05,2]
[422365372,1778879373000,169.53,0.00011339,2]
[422365371,1778879373000,169.53,0.00010232,2]
[422365386,1778879431000,-500.0,0.00013356,2]
[422365390,1778879431000,-1000.0,0.000135,2]
[422365389,1778879431000,-208.38824723,0.00013457,2]
[422365387,1778879431000,-500.0,0.00013356,2]
[422365388,1778879431000,-600.0,0.00013356,2]
[422365380,1778879431000,-11769.08992576,0.000119,2]
[422365382,1778879431000,-214.997284,0.00011907,2]
[422365383,1778879431000,-169.53,0.00012446,2]
[422365381,1778879431000,-602.63072566,0.000119,2]
[422365379,1778879431000,-327.0,0.00011899,2]
[422365394,1778879431000,-203.57,0.00013639,2]
[422365384,1778879431000,-152.0,0.00012601,2]
[422365385,1778879431000,-5410.67248723,0.0001305,2]
[422365395,1778879431000,-164.51,0.00013663,2]
[422365391,1778879431000,-169.53,0.00013553,2]
[422365393,1778879431000,-181.84,0.00013625,2]
[422365392,1778879431000,-2000.0,0.00013617,2]
[422365407,1778879431000,-9979.97752452,0.00014013,2]
[422365397,1778879431000,-961.83,0.00013699,2]
[422365399,1778879431000,-162.45,0.00013699,2]
[422365396,1778879431000,-166.66,0.00013699,2]
[422365398,1778879431000,-5063.83,0.00013699,2]
[422365400,1778879431000,-200.0,0.0001382,2]
[422365402,1778879431000,-166.66,0.00013973,2]
[422365403,1778879431000,-159.5,0.00013992,2]
[422365404,1778879431000,-250.0,0.00014,2]
[422365401,1778879431000,-166.66,0.00013836,2]
[422365406,1778879431000,-150.0,0.00014012,2]
[422365405,1778879431000,-164.51,0.00014004,2]
[422365413,1778879437000,-20.01247548,0.00014013,2]
[422365414,1778879437000,-167.61,0.00014077,2]
[422365415,1778879437000,-306.38832459,0.00014077,2]
[422365446,1778879440000,-818.43540864,0.00014899,2]
[422365457,1778879440000,-818.43540861,0.00014899,2]
[422365459,1778879440000,-860.92273674,0.00014899,2]
[422365461,1778879440000,-818.43540861,0.00014899,2]
[422365444,1778879440000,-200.0,0.0001488,2]
[422365463,1778879440000,-818.43540861,0.000149,2]
[422365455,1778879440000,-860.92273674,0.00014899,2]
[422365465,1778879440000,-860.92273674,0.000149,2]
[422365467,1778879440000,-818.43540861,0.000149,2]
[422365468,1778879440000,-860.92273674,0.000149,2]
[422365476,1778879440000,-5000.0,0.000149,2]
[422365474,1778879440000,-388.64567198,0.000149,2]
[422365487,1778879440000,-198.85468374,0.00014994,2]
[422365472,1778879440000,-818.43540861,0.000149,2]
[422365477,1778879440000,-16319.32480331,0.000149,2]
[422365479,1778879440000,-818.43540861,0.000149,2]
[422365481,1778879440000,-175.6316348,0.00014963,2]
[422365496,1778879440000,-500.0,0.00014997,2]
[422365439,1778879440000,-373.0,0.00014726,2]
[422365489,1778879440000,-152.0,0.00014996,7]
[422365486,1778879440000,-22894.9778778,0.00014963,2]
[422365494,1778879440000,-190.94577915,0.00014997,2]
[422365483,1778879440000,-3982.9161479,0.00014963,2]
[422365492,1778879440000,-151.0,0.00014997,2]
[422365484,1778879440000,-3760.3981027,0.00014963,2]
[422365470,1778879440000,-818.43540861,0.000149,2]
[422365437,1778879440000,-2847.1723711,0.000147,2]
[422365443,1778879440000,-2000.0,0.0001485,2]
[422365447,1778879440000,-860.92273679,0.00014899,2]
[422365485,1778879440000,-5143.222202,0.00014963,2]
[422365418,1778879440000,-158.08167541,0.00014077,2]
[422365420,1778879440000,-166.66,0.00014247,2]
[422365421,1778879440000,-164.51,0.00014346,2]
[422365422,1778879440000,-166.66,0.00014384,2]
[422365419,1778879440000,-166.66,0.0001411,2]
[422365426,1778879440000,-500.0,0.00014576,2]
[422365423,1778879440000,-500.0,0.00014576,2]
[422365424,1778879440000,-500.0,0.00014576,2]
[422365425,1778879440000,-500.0,0.00014576,2]
[422365427,1778879440000,-500.0,0.00014576,2]
[422365433,1778879440000,-172.58069407,0.00014576,2]
[422365428,1778879440000,-500.0,0.00014576,2]
[422365432,1778879440000,-500.0,0.00014576,2]
[422365429,1778879440000,-500.0,0.00014576,2]
[422365431,1778879440000,-500.0,0.00014576,2]
[422365430,1778879440000,-500.0,0.00014576,2]
[422365434,1778879440000,-150.0,0.00014576,2]
[422365436,1778879440000,-164.51,0.00014687,2]
[422365435,1778879440000,-350.0,0.00014596,2]
[422365441,1778879440000,-2000.0,0.0001485,2]
[422365440,1778879440000,-398.932,0.00014771,2]
[422365451,1778879440000,-860.92273674,0.00014899,2]
[422365442,1778879440000,-2000.0,0.0001485,2]
[422365449,1778879440000,-818.43540861,0.00014899,2]
[422365438,1778879440000,-600.0,0.00014726,2]
[422365453,1778879440000,-818.43540861,0.00014899,2]
[422365445,1778879440000,-350.0,0.00014898,2]
[422365491,1778879440000,-152.0,0.00014996,7]
[422365521,1778879440000,-500.0,0.00014998,2]
[422365500,1778879440000,-500.0,0.00014997,2]
[422365567,1778879440000,-500.0,0.00014999,2]
[422365561,1778879440000,-500.0,0.00014999,2]
[422365563,1778879440000,-500.0,0.00014999,2]
[422365569,1778879440000,-500.0,0.00014999,2]
[422365573,1778879440000,-500.0,0.00014999,2]
[422365574,1778879440000,-238.8,0.00014999,2]
[422365578,1778879440000,-431.69745624,0.00014999,2]
[422365576,1778879440000,-500.0,0.00014999,2]
[422365582,1778879440000,-500.0,0.00014999,2]
[422365580,1778879440000,-500.0,0.00014999,2]
[422365592,1778879440000,-500.0,0.00014999,2]
[422365586,1778879440000,-500.0,0.00014999,2]
[422365571,1778879440000,-500.0,0.00014999,2]
[422365596,1778879440000,-500.0,0.00014999,2]
[422365590,1778879440000,-640.39212556,0.00014999,2]
[422365588,1778879440000,-500.0,0.00014999,2]
[422365594,1778879440000,-500.0,0.00014999,2]
[422365600,1778879440000,-500.0,0.00014999,2]
[422365602,1778879440000,-500.0,0.00014999,2]
[422365604,1778879440000,-500.0,0.00014999,2]
[422365606,1778879440000,-500.0,0.00014999,2]
[422365608,1778879440000,-500.0,0.00014999,2]
[422365610,1778879440000,-500.0,0.00014999,2]
[422365612,1778879440000,-500.0,0.00014999,2]
[422365614,1778879440000,-500.0,0.00014999,2]
[422365498,1778879440000,-500.0,0.00014997,2]
[422365584,1778879440000,-500.0,0.00014999,2]
[422365558,1778879440000,-500.0,0.00014999,2]
[422365598,1778879440000,-500.0,0.00014999,2]
[422365565,1778879440000,-500.0,0.00014999,2]
[422365502,1778879440000,-500.0,0.00014997,2]
[422365556,1778879440000,-500.0,0.00014999,2]
[422365504,1778879440000,-500.0,0.00014997,2]
[422365506,1778879440000,-500.0,0.00014997,2]
[422365508,1778879440000,-373.0,0.00014998,2]
[422365510,1778879440000,-500.0,0.00014998,2]
[422365514,1778879440000,-500.0,0.00014998,2]
[422365519,1778879440000,-500.0,0.00014998,2]
[422365512,1778879440000,-503.8532288,0.00014998,2]
[422365523,1778879440000,-500.0,0.00014998,2]
[422365516,1778879440000,-500.0,0.00014998,2]
[422365517,1778879440000,-500.0,0.00014998,2]
[422365529,1778879440000,-500.0,0.00014998,2]
[422365525,1778879440000,-502.56578458,0.00014998,2]
[422365531,1778879440000,-500.0,0.00014998,2]
[422365554,1778879440000,-500.0,0.00014999,2]
[422365527,1778879440000,-500.0,0.00014998,2]
[422365552,1778879440000,-500.0,0.00014999,2]
[422365550,1778879440000,-500.0,0.00014999,2]
[422365538,1778879440000,-500.0,0.00014999,2]
[422365535,1778879440000,-520.1,0.00014998,2]
[422365539,1778879440000,-500.0,0.00014999,2]
[422365548,1778879440000,-500.0,0.00014999,2]
[422365533,1778879440000,-500.0,0.00014998,2]
[422365544,1778879440000,-500.0,0.00014999,2]
[422365542,1778879440000,-500.0,0.00014999,2]
[422365546,1778879440000,-500.0,0.00014999,2]
[422365707,1778879441000,-500.0,0.00014999,2]
[422365701,1778879441000,-500.0,0.00014999,2]
[422365690,1778879441000,-500.0,0.00014999,2]
[422365698,1778879441000,-500.0,0.00014999,2]
[422365692,1778879441000,-500.0,0.00014999,2]
[422365686,1778879441000,-500.0,0.00014999,2]
[422365703,1778879441000,-500.0,0.00014999,2]
[422365684,1778879441000,-500.0,0.00014999,2]
[422365680,1778879441000,-500.0,0.00014999,2]
[422365682,1778879441000,-500.0,0.00014999,2]
[422365705,1778879441000,-500.0,0.00014999,2]
[422365706,1778879441000,-500.0,0.00014999,2]
[422365699,1778879441000,-500.0,0.00014999,2]
[422365720,1778879441000,-500.0,0.00014999,2]
[422365704,1778879441000,-500.0,0.00014999,2]
[422365694,1778879441000,-500.0,0.00014999,2]
[422365696,1778879441000,-500.0,0.00014999,2]
[422365710,1778879441000,-500.0,0.00014999,2]
[422365714,1778879441000,-500.0,0.00014999,2]
[422365713,1778879441000,-500.0,0.00014999,2]
[422365709,1778879441000,-500.0,0.00014999,2]
[422365711,1778879441000,-500.0,0.00014999,2]
[422365712,1778879441000,-500.0,0.00014999,2]
[422365708,1778879441000,-500.0,0.00014999,2]
[422365719,1778879441000,-500.0,0.00014999,2]
[422365668,1778879441000,-244.36367736,0.00014999,2]
[422365688,1778879441000,-500.0,0.00014999,2]
[422365676,1778879441000,-500.0,0.00014999,2]
[422365621,1778879441000,-500.0,0.00014999,2]
[422365672,1778879441000,-500.0,0.00014999,2]
[422365715,1778879441000,-500.0,0.00014999,2]
[422365618,1778879441000,-500.0,0.00014999,2]
[422365625,1778879441000,-500.0,0.00014999,2]